[Event "WYCC 2018 G16"]
[Site "Halkidiki"]
[Date "2018.10.24"]
[Round "6"]
[White "Kvendseth, Thyra"]
[Black "Aubert, Estee"]
[Result "1-0"]
[ECO "E67"]
[WhiteElo "1854"]
[BlackElo "2064"]
[Annotator "NA"]
[PlyCount "141"]
[EventDate "2018.10.20"]
[EventType "swiss"]
[EventCountry "GRE"]
[SourceTitle "playchess.com"]
[Source "ChessBase"]
[SourceQuality "1"]
[TimeControl "40/5400+30:1800+30"]

1. d4 {[%emt 0:00:00]} Nf6 {[%emt 0:00:00]} 2. Nf3 {[%emt 0:00:00]} g6 {[%emt 0:00:00]} 3. g3 {[%emt 0:00:00]} Bg7 {[%emt 0:00:00]} 4. Bg2 {[%emt 0:00:00]} O-O {[%emt 0:00:00]} 5. O-O {[%emt 0:00:00]} d6 {[%emt 0:00:00]} 6. c4 {[%emt 0:00:05]} Nbd7 {[%emt 0:00:14]} 7. Nc3 {[%emt 0:01:54]} e5 {[%emt 0:00:34]} 8. Re1 {[%emt 0:11:00]} Re8 {[%emt 0:02:37]} 9. e4 {[%emt 0:10:15]} exd4 {[%emt 0:00:17]} 10. Nxd4 {[%emt 0:00:08]} a5 {[%emt 0:00:26] LiveBook: 10 Games} 11. Bg5 {[%emt 0:10:18] E68: King's Indian: Fianchetto: 6...Nbd7 7 0-0 e5 8 e4} h6 {[%emt 0:06:36]} 12. Bf4 {[%emt 0:05:09]} Nc5 {[%emt 0:07:06]} 13. Ndb5 {[%emt 0:08:01]} Ne6 $146 {[%emt 0:04:58]} ({Predecessor:} 13... g5 14. Bc1 Be6 15. b3 Ng4 16. f3 Ne5 17. Be3 Bd7 {0-1 (36) Henriquez Garcia,D (1953)-Meneses Gonzalez,K (2305) Tenerife 2017}) 14. Be3 {[%emt 0:18:11]} Nd7 {[%emt 0:02:17]} 15. f4 {[%emt 0:01:51]} Nec5 {[%emt 0:03:34]} 16. Qd2 {[%emt 0:08:29]} Kh7 {[%emt 0:08:35]} 17. Rad1 {[%emt 0:00:42]} Na6 {[%emt 0:10:09]} 18. b3 {[%emt 0:04:10]} Ndc5 {[%emt 0:01:10]} 19. e5 {[%emt 0:00:33]} Bg4 {[%emt 0:01:43]} 20. Rc1 {[%emt 0:09:52]} dxe5 {[%emt 0:01:18]} 21. Qxd8 {[%emt 0:00:43]} Rexd8 {[%emt 0:01:04]} 22. Nxc7 {[%emt 0:00:50]} Nd3 {[%emt 0:09:40]} 23. Nxa8 {[%emt 0:01:31]} Nxe1 {[%emt 0:00:04]} 24. Bxb7 {[%emt 0:03:06]} Nd3 {[%emt 0:01:48]} 25. Rf1 {[%emt 0:03:52]} exf4 {[%emt 0:03:01]} 26. Bd2 {[%emt 0:01:19]} Nac5 {[%emt 0:07:48]} 27. Bd5 {[%emt 0:00:40]} Bd4+ {[%emt 0:00:25]} 28. Kg2 {[%emt 0:00:26]} f3+ {[%emt 0:09:09]} 29. Rxf3 {[%emt 0:00:44]} Bxf3+ {[%emt 0:00:42]} 30. Kxf3 {[%emt 0:00:01]} Ne5+ {[%emt 0:01:28]} 31. Kg2 {[%emt 0:00:26]} Na6 {[%emt 0:05:23]} 32. Nb5 {[%emt 0:00:25]} Bc5 {[%emt 0:02:13]} 33. Bxa5 {[%emt 0:00:09]} Rd7 {[%emt 0:01:34]} 34. Nb6 {[%emt 0:01:12]} Re7 {[%emt 0:00:18]} 35. Na4 {[%emt 0:00:37]} Nd3 {[%emt 0:01:46]} 36. Nxc5 {[%emt 0:00:36]} Naxc5 {[%emt 0:01:45]} 37. Nd4 {[%emt 0:00:39]} f5 {[%emt 0:00:53]} 38. b4 {[%emt 0:00:11]} Na4 {[%emt 0:01:08]} 39. b5 {[%emt 0:00:31]} f4 {[%emt 0:01:06]} 40. b6 {[%emt 0:00:00]} Nac5 {[%emt 0:00:00]} 41. Bc6 {[%emt 0:06:40]} g5 {[%emt 0:06:27]} 42. a4 {[%emt 0:03:36]} h5 {[%emt 0:09:58]} 43. h3 {[%emt 0:04:08]} fxg3 {[%emt 0:01:16]} 44. Kxg3 {[%emt 0:00:41]} Re3+ {[%emt 0:00:10]} 45. Kg2 {[%emt 0:03:08]} Nf4+ {[%emt 0:00:28]} 46. Kf1 {[%emt 0:01:38]} Rd3 {[%emt 0:06:22]} 47. Nb5 {[%emt 0:05:46]} Rd1+ {[%emt 0:01:03]} 48. Kf2 {[%emt 0:00:25]} Nxh3+ {[%emt 0:06:27]} 49. Ke2 {[%emt 0:00:35]} Rd8 {[%emt 0:00:26]} 50. b7 {[%emt 0:00:57]} Nf4+ {[%emt 0:00:08]} 51. Ke1 {[%emt 0:01:07]} Nfd3+ {[%emt 0:00:51]} 52. Kd1 {[%emt 0:02:22]} Rf8 {[%emt 0:00:33]} 53. Bc7 {[%emt 0:03:07]} Nb4 {[%emt 0:02:30]} 54. Bg2 {[%emt 0:03:16]} Nba6 {[%emt 0:00:38]} 55. Bd6 {[%emt 0:00:21]} Rd8 {[%emt 0:00:49]} 56. Ke2 {[%emt 0:00:46]} Nxa4 {[%emt 0:00:54]} 57. Be4+ {[%emt 0:00:40]} Kh6 {[%emt 0:00:07]} 58. Kf3 {[%emt 0:00:20]} N4c5 {[%emt 0:01:36]} 59. Bd5 {[%emt 0:00:23]} Nd7 {[%emt 0:01:46]} 60. Nd4 {[%emt 0:00:52]} Nb6 {[%emt 0:01:13]} 61. Be7 {[%emt 0:00:33]} Rd7 {[%emt 0:01:43]} 62. Nf5+ {[%emt 0:00:15]} Kg6 {[%emt 0:00:05]} 63. Be4 {[%emt 0:00:12]} g4+ {[%emt 0:00:52]} 64. Kf4 {[%emt 0:00:16]} Kf7 {[%emt 0:00:02]} 65. Bd6 {[%emt 0:00:27]} Rd8 $2 {[%emt 0:00:47]} (65... Ke6 $11 {and Black stays safe.}) 66. c5 {[%emt 0:00:10]} Na4 $18 {[%emt 0:02:23]} (66... Nd7 67. c6 Ndb8) 67. c6 {[%emt 0:00:25]} Rxd6 {[%emt 0:00:18]} 68. Nxd6+ {[%emt 0:00:08]} Ke6 {[%emt 0:00:09]} 69. c7 {[%emt 0:00:12]} Nxc7 {[%emt 0:00:47]} 70. b8=Q {[%emt 0:00:08]} Kxd6 {[%emt 0:00:05]} 71. Qd8+ {[%emt 0:00:07] Kd5} 1-0

[Event "WYCC 2018 G16"]
[Site "Halkidiki"]
[Date "2018.10.24"]
[Round "6"]
[White "Pecorini, Angie"]
[Black "Michielsen, Lies"]
[Result "1/2-1/2"]
[ECO "D35"]
[WhiteElo "1847"]
[BlackElo "1398"]
[Annotator "NA"]
[PlyCount "63"]
[EventDate "2018.10.20"]
[EventType "swiss"]
[EventCountry "GRE"]
[SourceTitle "playchess.com"]
[Source "ChessBase"]
[SourceQuality "1"]
[TimeControl "40/5400+30:1800+30"]

1. d4 {[%emt 0:00:00]} Nf6 {[%emt 0:00:00]} 2. c4 {[%emt 0:00:00]} e6 {[%emt 0:00:15]} 3. Nc3 {[%emt 0:00:00]} d5 {[%emt 0:00:09]} 4. cxd5 {[%emt 0:00:06]} Nxd5 {[%emt 0:00:11]} 5. e4 {[%emt 0:00:08]} Nxc3 {[%emt 0:00:13]} 6. bxc3 {[%emt 0:00:04]} c5 {[%emt 0:00:28]} 7. Nf3 {[%emt 0:01:39]} cxd4 {[%emt 0:00:14]} 8. cxd4 {[%emt 0:00:07]} Bb4+ {[%emt 0:00:17]} 9. Bd2 {[%emt 0:00:19]} Bxd2+ {[%emt 0:00:25]} 10. Qxd2 {[%emt 0:00:07]} O-O {[%emt 0:00:09]} 11. Bc4 {[%emt 0:01:42]} Nd7 {[%emt 0:01:13]} 12. O-O {[%emt 0:00:35]} Nf6 {[%emt 0:05:23]} 13. Rfe1 {[%emt 0:10:57]} b6 {[%emt 0:00:51]} 14. Ne5 {[%emt 0:03:13]} Bb7 {[%emt 0:01:50]} 15. f3 {[%emt 0:00:30]} Rc8 {[%emt 0:07:05]} 16. Rac1 {[%emt 0:03:23]} Nd7 {[%emt 0:16:02]} 17. Ng4 {[%emt 0:14:40]} Nf6 {[%emt 0:05:02]} 18. Nxf6+ {[%emt 0:06:04]} Qxf6 {[%emt 0:00:31]} 19. d5 {[%emt 0:02:00]} exd5 {[%emt 0:03:41]} 20. Bxd5 {[%emt 0:01:34]} Rxc1 {[%emt 0:13:02]} 21. Rxc1 {[%emt 0:02:31]} Rd8 {[%emt 0:17:36]} 22. Rc7 {[%emt 0:03:02]} Bxd5 {[%emt 0:01:03]} 23. exd5 {[%emt 0:00:11]} a5 {[%emt 0:03:09]} 24. d6 {[%emt 0:07:53]} Kf8 {[%emt 0:04:47]} 25. Rc6 {[%emt 0:04:43]} b5 {[%emt 0:02:10]} 26. Qd5 {[%emt 0:06:37]} Qe6 {[%emt 0:06:05]} 27. Qxe6 {[%emt 0:22:33]} fxe6 {[%emt 0:00:06]} 28. Kf2 {[%emt 0:00:19]} b4 29. Ra6 Ke8 {[%emt 0:05:42]} 30. Ke3 {[%emt 0:07:39]} Kf7 {[%emt 0:04:26]} 31. Rxa5 {[%emt 0:01:30]} Rxd6 {[%emt 0:00:10]} 32. Rb5 {[%emt 0:01:19]} 1/2-1/2

[Event "WYCC 2018 G16"]
[Site "Halkidiki"]
[Date "2018.10.24"]
[Round "6"]
[White "Leonova, Ameliya"]
[Black "Aciu, Malina-Andreea"]
[Result "0-1"]
[ECO "B54"]
[WhiteElo "1736"]
[BlackElo "1976"]
[Annotator "NA"]
[PlyCount "102"]
[EventDate "2018.10.20"]
[EventType "swiss"]
[EventCountry "GRE"]
[SourceTitle "playchess.com"]
[Source "ChessBase"]
[SourceQuality "1"]
[TimeControl "40/5400+30:1800+30"]

1. e4 {[%emt 0:00:00]} c5 {[%emt 0:00:00]} 2. Nf3 {[%emt 0:00:00]} d6 {[%emt 0:00:00]} 3. d4 {[%emt 0:00:04]} cxd4 {[%emt 0:00:01]} 4. Nxd4 {[%emt 0:00:10]} Nf6 {[%emt 0:00:04]} 5. f3 {[%emt 0:00:07]} a6 {[%emt 0:00:05]} 6. c4 {[%emt 0:00:06]} e6 {[%emt 0:00:44]} 7. Be3 {[%emt 0:00:27]} Be7 {[%emt 0:00:20]} 8. Be2 {[%emt 0:00:11]} Qc7 {[%emt 0:01:24]} 9. O-O {[%emt 0:00:28]} O-O {[%emt 0:00:13]} 10. Nc3 {[%emt 0:00:05]} b6 {[%emt 0:00:56]} 11. Qd2 {[%emt 0:00:09]} Bb7 {[%emt 0:00:13]} 12. Rfc1 {[%emt 0:00:24]} Nbd7 {[%emt 0:00:32]} 13. a4 {[%emt 0:04:05]} Rab8 {[%emt 0:00:14]} 14. Nb3 {[%emt 0:03:30]} Nc5 {[%emt 0:09:19]} 15. Qd1 {[%emt 0:06:44]} Nxb3 {[%emt 0:11:10]} 16. Qxb3 {[%emt 0:00:15]} Ba8 {[%emt 0:00:48]} 17. Qc2 {[%emt 0:05:42]} Rbc8 {[%emt 0:05:55]} 18. Qd2 {[%emt 0:01:40]} Rfd8 {[%emt 0:04:23]} 19. Rab1 {[%emt 0:02:21]} Nd7 {[%emt 0:16:27]} 20. b4 {[%emt 0:03:40]} Ne5 {[%emt 0:00:28]} 21. f4 {[%emt 0:01:54]} Nd7 {[%emt 0:01:03]} 22. Qa2 {[%emt 0:07:10]} Bf6 {[%emt 0:07:03]} 23. Bf3 {[%emt 0:01:57]} Qxc4 {[%emt 0:05:54]} 24. Rb3 {[%emt 0:33:35]} Bd4 {[%emt 0:04:06]} 25. Bxd4 {[%emt 0:04:58]} Qxd4+ {[%emt 0:00:03]} 26. Qf2 {[%emt 0:00:23]} Qxf2+ {[%emt 0:03:26]} 27. Kxf2 {[%emt 0:00:12]} Nf6 {[%emt 0:00:11]} 28. Rd1 {[%emt 0:07:17]} Kf8 {[%emt 0:03:14]} 29. g4 {[%emt 0:01:56]} Ke7 {[%emt 0:01:14]} 30. g5 {[%emt 0:00:54]} Nd7 {[%emt 0:00:22]} 31. h4 {[%emt 0:01:39]} Rc7 {[%emt 0:02:14]} 32. Ne2 {[%emt 0:01:30]} Nb8 {[%emt 0:02:50]} 33. h5 {[%emt 0:05:09]} Rc4 {[%emt 0:02:35]} 34. Ke3 {[%emt 0:01:10]} Nc6 {[%emt 0:03:15]} 35. Rdb1 {[%emt 0:01:59]} a5 {[%emt 0:02:28]} 36. b5 {[%emt 0:04:01]} Nb4 {[%emt 0:00:06]} 37. Nd4 {[%emt 0:00:51]} Rdc8 {[%emt 0:01:33]} 38. f5 {[%emt 0:01:08]} e5 {[%emt 0:02:08]} 39. Ne2 {[%emt 0:00:53]} Nc2+ {[%emt 0:02:24]} 40. Kd2 {[%emt 0:00:00]} Nd4 {[%emt 0:00:00]} 41. Nxd4 {[%emt 0:01:13]} Rxd4+ {[%emt 0:02:51]} 42. Rd3 {[%emt 0:00:35]} Rxa4 {[%emt 0:00:41]} 43. f6+ {[%emt 0:00:19]} gxf6 {[%emt 0:01:23]} 44. gxf6+ {[%emt 0:00:08]} Kxf6 {[%emt 0:01:18]} 45. Rxd6+ {[%emt 0:00:23]} Ke7 {[%emt 0:02:45]} 46. Rxb6 {[%emt 0:00:59]} Ra2+ {[%emt 0:03:12]} 47. Ke1 {[%emt 0:00:51]} Rc3 {[%emt 0:03:31]} 48. Ra6 {[%emt 0:09:32]} Re3+ {[%emt 0:02:43]} 49. Kf1 {[%emt 0:05:16]} Rxf3+ {[%emt 0:00:08]} 50. Kg1 {[%emt 0:01:02]} Rg3+ {[%emt 0:00:09]} 51. Kf1 {[%emt 0:00:45]} Rh3 {[%emt 0:01:42]} 0-1

[Event "WYCC 2018 G16"]
[Site "Halkidiki"]
[Date "2018.10.24"]
[Round "6"]
[White "Hewawasam, H Y Nevanjee Dimany"]
[Black "De Silva, Tenara"]
[Result "0-1"]
[ECO "B06"]
[WhiteElo "1686"]
[BlackElo "1927"]
[Annotator "NA"]
[PlyCount "92"]
[EventDate "2018.10.20"]
[EventType "swiss"]
[EventCountry "GRE"]
[SourceTitle "playchess.com"]
[Source "ChessBase"]
[SourceQuality "1"]
[TimeControl "40/5400+30:1800+30"]

1. e4 {[%emt 0:00:00]} d6 {[%emt 0:00:00]} 2. d4 {[%emt 0:00:00]} g6 {[%emt 0:00:00]} 3. Nc3 {[%emt 0:00:00]} Bg7 {[%emt 0:00:00]} 4. Be3 {[%emt 0:00:01]} a6 {[%emt 0:01:05]} 5. Qd2 {[%emt 0:00:41]} b5 {[%emt 0:00:16]} 6. h4 {[%emt 0:00:40]} h5 {[%emt 0:01:28]} 7. f3 {[%emt 0:01:05]} Bb7 {[%emt 0:10:27]} 8. Nh3 {[%emt 0:03:02]} Nd7 {[%emt 0:01:21]} 9. Ng5 {[%emt 0:04:57]} Nh6 {[%emt 0:04:25]} 10. Be2 {[%emt 0:07:37]} c5 {[%emt 0:26:03]} 11. Nd1 {[%emt 0:29:50]} Qc7 {[%emt 0:03:07]} 12. c3 {[%emt 0:00:39]} Rc8 {[%emt 0:03:21]} 13. Rc1 {[%emt 0:00:58]} cxd4 {[%emt 0:00:28]} 14. Bxd4 {[%emt 0:02:34]} Bxd4 {[%emt 0:01:42]} 15. Qxd4 {[%emt 0:00:05]} Nf6 {[%emt 0:01:31]} 16. Nf2 {[%emt 0:02:17]} e5 {[%emt 0:04:07]} 17. Qd2 {[%emt 0:06:06]} d5 {[%emt 0:01:08]} 18. O-O {[%emt 0:01:16]} Qb6 {[%emt 0:06:27]} 19. Rcd1 {[%emt 0:05:18]} Rd8 {[%emt 0:03:16]} 20. Kh1 {[%emt 0:02:54]} Ke7 {[%emt 0:03:31]} 21. Qe1 {[%emt 0:06:35]} dxe4 {[%emt 0:03:04]} 22. fxe4 {[%emt 0:01:11]} Nd7 {[%emt 0:04:22]} 23. Nd3 {[%emt 0:07:41]} f6 {[%emt 0:00:35]} 24. Qg3 {[%emt 0:02:50]} a5 {[%emt 0:07:42]} 25. Nc1 {[%emt 0:05:23]} Ng4 {[%emt 0:05:45]} 26. Bxg4 {[%emt 0:00:31]} hxg4 {[%emt 0:00:03]} 27. Qxg4 {[%emt 0:00:06]} fxg5 {[%emt 0:00:27]} 28. Qxg5+ {[%emt 0:00:07]} Ke8 {[%emt 0:00:03]} 29. Nb3 {[%emt 0:02:30]} Rh5 {[%emt 0:01:33]} 30. Qg4 {[%emt 0:00:51]} Ke7 {[%emt 0:01:30]} 31. Kh2 {[%emt 0:04:08]} Nf6 {[%emt 0:01:36]} 32. Qh3 {[%emt 0:01:17]} Bc8 {[%emt 0:01:33]} 33. Qg3 {[%emt 0:01:28]} Rdh8 {[%emt 0:01:20]} 34. Nd4 {[%emt 0:01:48]} Rxh4+ {[%emt 0:00:13]} 35. Kg1 {[%emt 0:00:07]} Rh1+ {[%emt 0:00:03]} 36. Kf2 {[%emt 0:00:05]} Nxe4+ {[%emt 0:00:03]} 37. Kf3 {[%emt 0:00:32]} Nxg3 {[%emt 0:00:03]} 38. Kxg3 {[%emt 0:00:07]} Rxf1 {[%emt 0:00:05]} 39. Rxf1 {[%emt 0:00:06]} exd4 {[%emt 0:00:03]} 40. a4 {[%emt 0:00:00]} d3 {[%emt 0:00:00]} 41. axb5 {[%emt 0:00:30]} d2 {[%emt 0:00:29]} 42. b4 {[%emt 0:00:12]} Qe3+ {[%emt 0:00:04]} 43. Rf3 {[%emt 0:00:08]} Qxf3+ {[%emt 0:00:04]} 44. gxf3 {[%emt 0:00:08]} d1=Q {[%emt 0:00:05]} 45. bxa5 {[%emt 0:00:11]} Bb7 {[%emt 0:00:07]} 46. a6 {[%emt 0:00:07]} Qxf3# {[%emt 0:00:04]} 0-1

[Event "WYCC 2018 G16"]
[Site "Halkidiki"]
[Date "2018.10.24"]
[Round "6"]
[White "Simkunaite, Gabija"]
[Black "Bogdanic, Katarina"]
[Result "1/2-1/2"]
[ECO "B22"]
[WhiteElo "1650"]
[BlackElo "2014"]
[Annotator "NA"]
[PlyCount "105"]
[EventDate "2018.10.20"]
[EventType "swiss"]
[EventCountry "GRE"]
[SourceTitle "playchess.com"]
[Source "ChessBase"]
[SourceQuality "1"]
[TimeControl "40/5400+30:1800+30"]

1. e4 {[%emt 0:00:00]} c5 {[%emt 0:00:00]} 2. c3 {[%emt 0:00:00]} Nf6 {[%emt 0:00:00]} 3. e5 {[%emt 0:00:12]} Nd5 {[%emt 0:00:00]} 4. d4 {[%emt 0:00:19]} cxd4 {[%emt 0:00:00]} 5. Nf3 {[%emt 0:00:54]} e6 {[%emt 0:00:12]} 6. cxd4 {[%emt 0:00:34]} b6 {[%emt 0:00:19]} 7. Nc3 {[%emt 0:05:13]} Nxc3 {[%emt 0:00:26]} 8. bxc3 {[%emt 0:00:09]} Qc7 {[%emt 0:00:13]} 9. Bd2 {[%emt 0:01:33] LiveBook: 573 Games} Be7 {[%emt 0:00:24]} 10. Bd3 {[%emt 0:01:44]} Ba6 {[%emt 0:01:09]} 11. Qe2 {[%emt 0:05:16] B22: Sicilian: 2 c3} (11. Bxa6 Nxa6 12. Qe2 Nb8 13. c4 Qb7 14. O-O O-O 15. a4 d6 16. Bb4 dxe5 17. Bxe7 Qxe7 18. Nxe5 Nd7 19. a5 Nxe5 20. Qxe5 {½-½ (99) Smerdon,D (2525)-Dominguez Perez,L (2719) Khanty-Mansiysk 2009}) 11... Bxd3 {[%emt 0:05:19]} 12. Qxd3 {[%emt 0:00:07]} Nc6 {[%emt 0:02:05]} 13. O-O {[%emt 0:01:57]} O-O {[%emt 0:05:01]} 14. Bg5 {[%emt 0:04:49]} f6 $146 ({Predecessor:} 14... d5 15. exd6 Bxd6 16. Bh4 h6 17. Bg3 Rfd8 18. Rac1 Rac8 {0-1 (33) Satta,V (2300)-Mantovani,R (2365) Castiglione 1995}) 15. exf6 {[%emt 0:05:30]} Bxf6 {[%emt 0:01:07]} 16. Bxf6 {[%emt 0:00:48]} Rxf6 {[%emt 0:00:05]} 17. d5 $11 {[%emt 0:09:11]} Ne5 {[%emt 0:05:31]} 18. Nxe5 {[%emt 0:00:14]} Qxe5 {[%emt 0:00:06]} 19. dxe6 {[%emt 0:00:45]} dxe6 {[%emt 0:00:39]} 20. Rae1 {[%emt 0:03:14]} Qc5 {[%emt 0:04:44]} 21. Re3 {[%emt 0:07:37]} Raf8 {[%emt 0:11:23]} 22. Qe2 {[%emt 0:03:03]} Qc6 {[%emt 0:11:55]} 23. Rg3 {[%emt 0:04:48]} R8f7 {[%emt 0:14:15]} 24. Qd2 {[%emt 0:03:33]} Rd7 {[%emt 0:04:53]} 25. Qe2 {[%emt 0:00:26]} Qd6 {[%emt 0:01:50]} 26. h3 {[%emt 0:03:24]} Qd2 {[%emt 0:08:18]} 27. Qe5 {[%emt 0:01:23]} Kf7 {[%emt 0:02:42]} 28. Qh5+ {[%emt 0:01:50]} Kg8 {[%emt 0:00:52]} 29. Qe5 {[%emt 0:01:23]} Qf4 {[%emt 0:02:28]} 30. Qb5 {[%emt 0:01:09]} Qd6 {[%emt 0:00:47]} 31. Qe2 {[%emt 0:05:16]} Qc5 {[%emt 0:00:13]} 32. Re3 {[%emt 0:00:23]} Qd5 {[%emt 0:03:25]} 33. Rg3 {[%emt 0:03:38]} Kf8 {[%emt 0:00:14]} 34. Qa6 {[%emt 0:00:06]} Kg8 {[%emt 0:00:25]} 35. Qe2 {[%emt 0:01:42]} Qd6 {[%emt 0:02:08]} 36. Qe3 {[%emt 0:01:45]} Qf4 {[%emt 0:02:13]} 37. Qe1 {[%emt 0:00:08]} Qd6 {[%emt 0:01:47]} 38. Qe2 {[%emt 0:02:16]} g6 {[%emt 0:02:26]} 39. Re3 {[%emt 0:00:00]} Kf7 {[%emt 0:00:00]} 40. Qa6 {[%emt 0:00:00]} Qd2 41. Qc8 Re7 {[%emt 0:03:17]} 42. Qh8 {[%emt 0:03:00]} Qc2 {[%emt 0:06:16]} 43. Qxh7+ {[%emt 0:00:40]} Kf8 {[%emt 0:00:19]} 44. Qh4 {[%emt 0:01:17]} Kf7 {[%emt 0:00:04]} 45. Qc4 {[%emt 0:00:35]} Rd7 46. Qc6 {[%emt 0:02:49]} Qd2 {[%emt 0:03:50]} 47. Rf3 {[%emt 0:02:11]} Rxf3 {[%emt 0:00:46]} 48. Qxf3+ {[%emt 0:00:16]} Kg7 {[%emt 0:00:41]} 49. Qe4 {[%emt 0:00:25]} Qxa2 50. Qe5+ Kf7 {[%emt 0:02:25]} 51. Qf4+ {[%emt 0:00:31]} Kg7 52. Qe5+ Kf7 {[%emt 0:03:03]} 53. Qf4+ {[%emt 0:00:05]} 1/2-1/2

[Event "WYCC 2018 G16"]
[Site "Halkidiki"]
[Date "2018.10.24"]
[Round "6"]
[White "Cotun, Mihaela"]
[Black "Moerwald, Magdalena"]
[Result "1/2-1/2"]
[ECO "B10"]
[WhiteElo "1482"]
[BlackElo "1875"]
[Annotator "NA"]
[PlyCount "122"]
[EventDate "2018.10.20"]
[EventType "swiss"]
[EventCountry "GRE"]
[SourceTitle "playchess.com"]
[Source "ChessBase"]
[SourceQuality "1"]
[TimeControl "40/5400+30:1800+30"]

1. e4 {[%emt 0:00:00]} c6 {[%emt 0:00:00]} 2. Nf3 {[%emt 0:00:00]} d5 {[%emt 0:00:00]} 3. exd5 {[%emt 0:00:00]} cxd5 {[%emt 0:00:15]} 4. Ne5 {[%emt 0:00:00]} Nf6 {[%emt 0:05:32]} 5. d4 {[%emt 0:00:16]} a6 {[%emt 0:04:00]} 6. Bd3 {[%emt 0:08:52]} g6 {[%emt 0:04:35]} 7. O-O {[%emt 0:01:52]} Bg7 {[%emt 0:00:39]} 8. Re1 {[%emt 0:01:42]} O-O {[%emt 0:01:37]} 9. c3 {[%emt 0:02:57]} Be6 {[%emt 0:04:29]} 10. Nd2 {[%emt 0:00:47]} Qc8 {[%emt 0:03:21]} 11. h3 {[%emt 0:06:10]} Bf5 {[%emt 0:05:02]} 12. Nf1 {[%emt 0:16:05]} Bxd3 {[%emt 0:03:43]} 13. Nxd3 {[%emt 0:05:46]} Nc6 {[%emt 0:03:17]} 14. Ng3 {[%emt 0:02:26]} Nd7 {[%emt 0:03:41]} 15. Bf4 {[%emt 0:04:46]} Nb6 {[%emt 0:04:01]} 16. Ne5 {[%emt 0:04:11]} Na5 {[%emt 0:05:25]} 17. Ng4 {[%emt 0:11:55]} Re8 {[%emt 0:06:26]} 18. Nh6+ {[%emt 0:12:32]} Bxh6 {[%emt 0:06:43]} 19. Bxh6 {[%emt 0:00:07]} Nac4 {[%emt 0:01:50]} 20. Qc1 {[%emt 0:01:51]} Nd6 {[%emt 0:05:29]} 21. Qf4 {[%emt 0:01:59]} Nf5 {[%emt 0:02:28]} 22. Nxf5 {[%emt 0:03:28]} Qxf5 {[%emt 0:00:15]} 23. Qh4 {[%emt 0:06:27]} f6 {[%emt 0:03:47]} 24. g4 {[%emt 0:01:31]} g5 {[%emt 0:02:24]} 25. gxf5 {[%emt 0:01:15]} gxh4 {[%emt 0:00:09]} 26. Kh2 {[%emt 0:00:43]} Kf7 {[%emt 0:01:06]} 27. Rg1 {[%emt 0:00:56]} Rg8 {[%emt 0:00:12]} 28. Rg4 {[%emt 0:00:33]} Rxg4 {[%emt 0:03:16]} 29. hxg4 {[%emt 0:00:04]} Nc4 {[%emt 0:02:04]} 30. b3 {[%emt 0:01:19]} Nd6 {[%emt 0:00:30]} 31. f3 {[%emt 0:01:13]} Re8 {[%emt 0:04:21]} 32. Re1 {[%emt 0:02:57]} Kg8 {[%emt 0:05:36]} 33. Kh3 {[%emt 0:00:38]} Nf7 {[%emt 0:00:05]} 34. Bf4 {[%emt 0:00:53]} Ng5+ {[%emt 0:00:24]} 35. Kg2 {[%emt 0:00:35]} b5 {[%emt 0:04:01]} 36. Rh1 {[%emt 0:00:37]} Rc8 {[%emt 0:00:15]} 37. Rc1 {[%emt 0:00:33]} e6 {[%emt 0:02:22]} 38. fxe6 {[%emt 0:00:25]} Nxe6 {[%emt 0:00:06]} 39. Bd2 {[%emt 0:00:32]} Kf7 {[%emt 0:01:47]} 40. Rh1 {[%emt 0:00:00]} b4 {[%emt 0:00:00]} 41. Rc1 {[%emt 0:10:23]} bxc3 {[%emt 0:07:55]} 42. Rxc3 {[%emt 0:01:08]} Rxc3 {[%emt 0:01:11]} 43. Bxc3 {[%emt 0:00:04]} Kg6 {[%emt 0:03:37]} 44. Kh2 {[%emt 0:15:06]} f5 {[%emt 0:05:24]} 45. Kh3 {[%emt 0:05:24]} Ng5+ {[%emt 0:07:30]} 46. Kxh4 {[%emt 0:01:18]} f4 {[%emt 0:02:10]} 47. b4 {[%emt 0:00:25]} Nxf3+ {[%emt 0:00:26]} 48. Kh3 {[%emt 0:00:03]} Ng5+ {[%emt 0:02:56]} 49. Kg2 {[%emt 0:00:33]} Ne4 {[%emt 0:00:27]} 50. Be1 {[%emt 0:00:48]} Ng5 {[%emt 0:04:43]} 51. a4 {[%emt 0:00:21]} Ne6 {[%emt 0:00:28]} 52. Bf2 {[%emt 0:00:47]} h5 {[%emt 0:01:42]} 53. gxh5+ {[%emt 0:00:38]} Kxh5 {[%emt 0:00:08]} 54. b5 {[%emt 0:00:35]} axb5 {[%emt 0:00:44]} 55. axb5 {[%emt 0:00:02]} Kg4 {[%emt 0:00:25]} 56. b6 {[%emt 0:00:40]} Nd8 {[%emt 0:00:08]} 57. Be1 {[%emt 0:00:38]} f3+ {[%emt 0:00:21]} 58. Kf2 {[%emt 0:00:31]} Kf4 {[%emt 0:00:08]} 59. Bc3 {[%emt 0:00:26]} Ke4 {[%emt 0:00:14]} 60. Bb2 {[%emt 0:00:39]} Nb7 {[%emt 0:00:15]} 61. Bc3 {[%emt 0:00:25]} Nd8 {[%emt 0:00:24]} 1/2-1/2

[Event "WYCC 2018 G16"]
[Site "Halkidiki"]
[Date "2018.10.24"]
[Round "6"]
[White "Sagar Siya"]
[Black "Nguyen, Vu Thu Hien"]
[Result "0-1"]
[ECO "B17"]
[WhiteElo "1310"]
[BlackElo "1841"]
[Annotator "NA"]
[PlyCount "94"]
[EventDate "2018.10.20"]
[EventType "swiss"]
[EventCountry "GRE"]
[SourceTitle "playchess.com"]
[Source "ChessBase"]
[SourceQuality "1"]
[TimeControl "40/5400+30:1800+30"]

1. e4 {[%emt 0:00:00]} c6 {[%emt 0:00:00]} 2. d4 {[%emt 0:00:00]} d5 {[%emt 0:00:00]} 3. Nc3 {[%emt 0:00:00]} dxe4 {[%emt 0:00:00]} 4. Nxe4 {[%emt 0:00:09]} Nd7 {[%emt 0:00:00]} 5. Bc4 {[%emt 0:00:12]} Ngf6 {[%emt 0:00:03]} 6. Ng5 {[%emt 0:00:37]} e6 {[%emt 0:00:05]} 7. Qe2 {[%emt 0:00:33]} Nb6 {[%emt 0:00:06]} 8. Bd3 {[%emt 0:00:24]} h6 {[%emt 0:00:45]} 9. N5f3 {[%emt 0:00:32]} c5 {[%emt 0:00:24]} 10. dxc5 {[%emt 0:01:07]} Bxc5 {[%emt 0:00:13]} 11. Ne5 {[%emt 0:00:28]} Nbd7 {[%emt 0:02:46]} 12. Ngf3 {[%emt 0:01:02]} O-O {[%emt 0:04:24]} 13. Bd2 {[%emt 0:01:30]} Nxe5 {[%emt 0:02:35]} 14. Nxe5 {[%emt 0:00:43]} Bd4 {[%emt 0:01:15]} 15. O-O-O {[%emt 0:02:02]} Qd5 {[%emt 0:01:32]} 16. Nc4 {[%emt 0:04:04]} b5 {[%emt 0:01:11]} 17. Bb4 {[%emt 0:00:49]} bxc4 {[%emt 0:17:48]} 18. Bxf8 {[%emt 0:01:57]} cxd3 {[%emt 0:01:43]} 19. Qxd3 {[%emt 0:00:25]} Bxf2 {[%emt 0:03:26]} 20. Qxd5 {[%emt 0:01:22]} Nxd5 {[%emt 0:00:09]} 21. Bd6 {[%emt 0:01:35]} Ba6 {[%emt 0:00:25]} 22. Bg3 {[%emt 0:03:28]} Bc5 {[%emt 0:02:10]} 23. Rhe1 {[%emt 0:04:52]} Rc8 {[%emt 0:02:51]} 24. Kb1 {[%emt 0:00:32]} Rc6 {[%emt 0:01:44]} 25. a3 {[%emt 0:02:37]} Rb6 {[%emt 0:03:17]} 26. Ka1 {[%emt 0:00:45]} Ne3 {[%emt 0:00:54]} 27. Rc1 {[%emt 0:00:59]} Nc4 {[%emt 0:01:00]} 28. Rb1 {[%emt 0:00:32]} Bd4 {[%emt 0:05:19]} 29. c3 {[%emt 0:01:22]} Bf6 {[%emt 0:00:25]} 30. Bf2 {[%emt 0:01:24]} Rb7 {[%emt 0:00:20]} 31. Bd4 {[%emt 0:02:14]} Nd2 {[%emt 0:00:09]} 32. Rbd1 {[%emt 0:00:21]} Nb3+ {[%emt 0:00:04]} 33. Kb1 {[%emt 0:00:23]} Nxd4 {[%emt 0:00:04]} 34. cxd4 {[%emt 0:00:12]} Rd7 {[%emt 0:00:03]} 35. Re4 {[%emt 0:01:10]} Bb7 {[%emt 0:00:04]} 36. Rg4 {[%emt 0:00:25]} h5 {[%emt 0:00:41]} 37. Rg3 {[%emt 0:00:33]} Rxd4 {[%emt 0:00:18]} 38. Rxd4 {[%emt 0:00:26]} Bxd4 {[%emt 0:00:03]} 39. Rg5 {[%emt 0:00:33]} g6 {[%emt 0:00:09]} 40. b4 {[%emt 0:00:00]} e5 {[%emt 0:00:00]} 41. Rg3 {[%emt 0:01:10]} e4 {[%emt 0:00:20]} 42. Rb3 {[%emt 0:00:21]} e3 {[%emt 0:00:15]} 43. Kc1 {[%emt 0:00:16]} Bxg2 {[%emt 0:01:45]} 44. Kd1 {[%emt 0:00:27]} f5 {[%emt 0:00:33]} 45. b5 {[%emt 0:00:25]} f4 {[%emt 0:00:18]} 46. a4 {[%emt 0:00:21]} f3 {[%emt 0:00:09]} 47. Rd3 {[%emt 0:00:18]} f2 {[%emt 0:00:11]} 0-1